bitfinex-derivatives/quotes_ETHF0:USTF0_20241013
["timestamp","ask_amount","ask_price","bid_price","bid_amount"]
[1728838685602,0.6905,2456.4,2456.3,3.03097]
[1728838686296,2.82767905,2456.4,2456.3,3.15827186]
[1728838686498,3.23483905,2456.4,2456.3,3.15827186]
[1728838686796,4.55483905,2456.4,2456.3,1.71097]
[1728838687297,2.41766,2456.4,2456.3,1.83827267]
[1728838687804,2.0105,2456.4,2456.3,1.83827267]
[1728838688598,2.41766,2456.4,2456.3,1.83827267]
[1728838689505,2.41766,2456.4,2456.3,2.34748134]
[1728838689712,5.08800515,2456.4,2456.3,1.83827267]
[1728838690210,3.36084515,2456.4,2456.3,3.15827267]
[1728838690708,3.36084515,2456.4,2456.3,3.66748983]
[1728838691605,3.76800515,2456.4,2456.3,3.66748983]
[1728838693112,1.09766,2456.4,2456.3,3.66748983]
[1728838693319,3.76800515,2456.4,2456.3,3.66748983]
[1728838693608,3.76800515,2456.4,2456.3,3.54018716]
[1728838693814,3.76800515,2456.4,2456.3,3.66748996]
[1728838694504,3.76800515,2456.4,2456.3,3.03097]
[1728838694704,3.76800515,2456.4,2456.3,3.54018123]
[1728838694907,3.76800515,2456.4,2456.3,3.66748403]
[1728838695102,3.76800515,2456.4,2456.3,3.1582728]
[1728838695309,3.76800515,2456.4,2456.3,3.66748438]
[1728838695508,3.76800515,2456.4,2456.3,3.54018158]
[1728838695710,3.76800515,2456.4,2456.3,3.66748406]
[1728838695911,1.09766,2456.4,2456.3,3.66748406]
[1728838696112,1.09766,2456.4,2456.3,3.66748241]
[1728838696804,1.09766,2456.4,2456.3,2.36368241]
[1728838697005,9.05296,2456.4,2456.3,0.12730248]
[1728838697210,9.05296,2456.4,2455.9,1.05657561]
[1728838697211,1.01796,2456.3,2455.9,1.05657561]
[1728838697524,1.01796,2456.3,2455.8,1.67687948]
[1728838697525,0.40724,2455.9,2455.8,1.15157561]
[1728838697814,3.86504038,2455.9,2455.8,0.71302064]
[1728838698006,5.20944038,2455.9,2455.8,0.71302064]
[1728838698409,0.40726,2455.8,2455.7,0.50346792]
[1728838698610,1.72726,2455.8,2455.7,0.50346792]
[1728838698916,8.47143139,2455.8,2455.7,0.50346792]
[1728838699110,5.79926,2455.8,2455.7,0.50346792]
[1728838699712,15.79143139,2455.8,2455.7,0.50346792]
[1728838699902,11.79926,2455.8,2455.7,0.50346792]
[1728838700408,13.79936,2455.8,2455.7,0.50346792]
[1728838700613,12.47936,2455.8,2455.7,0.50346792]
[1728838703113,15.14425674,2455.8,2455.7,0.50346792]
[1728838703322,16.46425674,2455.8,2455.7,0.50346792]
[1728838705022,0.40732,2455.4,2455.3,0.095]
[1728838705215,2.38559251,2455.4,2455.2,1.9893]
[1728838705416,0.40734,2455.3,2455.2,2.39665]
[1728838706717,1.06559251,2455.5,2455.2,1.9893]
[1728838706912,0.40732,2455.5,2455.4,1.32]
[1728838707117,0.40732,2455.5,2455.4,1.72732]
[1728838707424,0.40732,2455.5,2455.4,1.32]
[1728838707721,0.40732,2455.5,2455.4,1.72732]
[1728838709119,0.40732,2455.5,2455.4,1.32]
[1728838709425,0.40732,2455.5,2455.4,1.72732]
[1728838710117,1.32,2455.6,2455.4,1.32]
[1728838710311,0.40731,2455.5,2455.4,1.72731]
[1728838710711,2.38559251,2455.7,2455.4,1.32]
[1728838710927,1.59838876,2455.8,2455.5,0.40729]
[1728838710928,1.32,2455.6,2455.5,0.40729]
[1728838711123,1.72729,2455.6,2455.5,0.40729]
[1728838714728,1.72729,2455.6,2455.4,1.32]
[1728838714729,0.40732,2455.4,2455.3,3.8544]
[1728838715026,0.40732,2455.4,2455.3,4.26174]
[1728838715221,1.72732,2455.4,2455.3,3.8544]
[1728838716120,1.72732,2455.4,2455.3,3.2078]
[1728838717421,1.72732,2455.4,2455.3,3.61514]
[1728838718420,1.72732,2455.4,2455.3,3.2078]
[1728838718628,1.72732,2455.4,2455.3,3.61514]
[1728838719321,1.72732,2455.4,2455.3,3.2078]
[1728838720229,1.72732,2455.4,2455.3,3.61514]
[1728838721427,1.72732,2455.4,2455.3,1.03744]
[1728838722326,2.36042,2455.5,2455.4,0.40732]
[1728838722726,0.40732,2455.5,2455.4,0.40732]
[1728838734740,1.06559251,2455.6,2455.3,2.6361]
[1728838735035,0.4073,2455.6,2455.5,0.40731]
[1728838735839,1.06559251,2455.7,2455.6,0.40729]
[1728838736141,0.40727,2455.8,2455.7,0.40727]
[1728838736536,0.40727,2455.8,2455.7,1.09797]
[1728838737633,1.72727,2455.8,2455.7,1.09797]
[1728838737826,0.40727,2455.8,2455.7,1.09797]
[1728838738026,1.72727,2455.8,2455.7,1.09797]
[1728838739135,3.32565876,2455.8,2455.7,1.09797]
[1728838741232,1.72727,2455.8,2455.7,1.09797]
[1728838742240,3.85845502,2455.8,2455.7,1.09797]
[1728838744644,1.72727,2455.8,2455.7,1.09797]
[1728838744841,3.86328584,2455.8,2455.7,1.09797]
[1728838745439,2.13601584,2455.8,2455.7,2.41797]
[1728838745741,2.13601584,2455.8,2455.7,3.19819953]
[1728838746131,2.13601584,2455.9,2455.8,0.40726]
[1728838747542,3.86324584,2456.0,2455.9,0.40724]
[1728838748837,2.54324584,2456.0,2455.9,0.40724]
[1728838750336,2.13601584,2456.0,2455.9,0.40724]
[1728838750538,2.13601584,2456.0,2455.9,1.72724]
[1728838750740,2.13601584,2456.0,2455.9,1.32]
[1728838750934,2.13601584,2456.0,2455.9,1.72724]
[1728838751138,2.54322584,2456.1,2456.0,0.40722]
[1728838751342,1.72721,2456.1,2456.0,1.09262]
[1728838751647,3.8618333,2456.1,2456.0,1.76892]
[1728838751839,1.72721,2456.1,2456.0,1.76892]
[1728838752344,3.86192629,2456.1,2456.0,1.76892]
[1728838755140,3.86192629,2456.1,2456.0,1.3617]
[1728838756944,3.86192629,2456.1,2456.0,1.76892]
[1728838757246,3.86192629,2456.1,2456.0,1.3617]
[1728838762946,3.86192629,2456.1,2456.0,1.76892]
[1728838763750,3.86192629,2456.1,2456.0,0.6763]
[1728838766147,2.54192629,2456.1,2456.0,0.6763]
[1728838766348,3.23421629,2456.2,2456.1,0.40721]
[1728838766951,0.40721,2456.1,2456.0,2.40351]
[1728838767140,2.00725269,2456.1,2456.0,2.40351]
[1728838769660,2.00725269,2456.1,2456.0,0.6763]
[1728838769852,3.32725269,2456.1,2456.0,0.6763]
[1728838770851,3.32725269,2456.1,2456.0,1.08352]
[1728838771449,3.32725269,2456.1,2456.0,0.6763]
[1728838772860,3.32725269,2456.1,2456.0,1.08352]
[1728838775157,1.72721,2456.1,2456.0,1.08352]
[1728838776053,0.40721,2456.1,2456.0,1.08352]
[1728838778253,2.54192629,2456.1,2456.0,1.08352]
[1728838784159,2.54192629,2456.1,2456.0,1.21083793]
[1728838786062,2.54192629,2456.1,2456.0,1.08352]
[1728838786354,2.54192629,2456.1,2456.0,1.21083623]
[1728838786750,2.54192629,2456.1,2456.0,1.08352]
[1728838786954,2.54192629,2456.1,2456.0,1.21083575]
[1728838788768,2.54192629,2456.1,2456.0,2.53083575]
[1728838789854,2.54192629,2456.1,2456.0,2.53083685]
[1728838790065,2.54192629,2456.1,2456.0,2.53083684]
[1728838791575,0.40721,2456.1,2456.0,2.53083684]
[1728838792473,0.40721,2456.1,2456.0,3.04010378]
[1728838793473,0.40721,2456.1,2456.0,2.91278694]
[1728838793778,0.40721,2456.1,2456.0,3.04010371]
[1728838797276,0.40721,2456.1,2456.0,3.04010289]
[1728838797476,0.40721,2456.1,2456.0,3.54936708]
[1728838797683,0.40721,2456.1,2456.0,3.5493667]
[1728838797874,0.40721,2456.1,2456.0,3.04009973]
[1728838798072,0.40721,2456.1,2456.0,3.04009934]
[1728838799178,3.35719674,2456.2,2456.1,0.40721]
[1728838799376,3.35719674,2456.2,2456.1,1.20072566]
[1728838800170,3.76438674,2456.2,2456.1,2.52072566]
[1728838800383,0.6923,2456.2,2456.1,2.52072566]
[1728838800578,3.35719674,2456.2,2456.1,2.52072566]
[1728838800779,3.76438674,2456.2,2456.1,2.52072566]
[1728838800980,3.35719674,2456.2,2456.1,2.52072566]
[1728838801184,2.66489674,2456.3,2456.1,2.62274709]
[1728838801382,2.13726916,2456.2,2456.1,1.07341]
[1728838801582,2.13726916,2456.2,2456.1,1.91362575]
[1728838802177,1.60274033,2456.2,2456.1,3.948416]
[1728838802372,1.60274033,2456.2,2456.1,5.268416]
[1728838802578,1.60274033,2456.2,2456.1,9.339616]
[1728838802883,1.60274033,2456.2,2456.1,10.63850877]
[1728838803279,1.60274033,2456.2,2456.1,9.58193316]
[1728838803585,1.72719,2456.2,2456.1,1.65493131]
[1728838803782,3.86445916,2456.2,2456.1,0.63651204]
[1728838803985,4.53985916,2456.2,2456.1,0.63651204]
[1728838805183,3.21985916,2456.2,2456.1,2.36372204]
[1728838805387,3.21985916,2456.2,2456.1,1.95651204]
[1728838806485,1.08259,2456.2,2456.1,2.36372204]
[1728838806682,3.20365916,2456.3,2456.2,0.40719]
[1728838806879,3.20363916,2456.3,2456.2,2.50039532]
[1728838807782,1.06637,2456.3,2456.2,3.00959668]
[1728838807981,3.20363916,2456.3,2456.2,3.00959668]
[1728838808181,1.06637,2456.3,2456.2,3.00959668]
[1728838808381,0.96637,2456.3,2456.2,3.00959668]
[1728838808580,0.86637,2456.3,2456.2,3.00959668]
[1728838808887,2.90363916,2456.3,2456.2,2.60240668]
[1728838809280,2.80363916,2456.3,2456.2,2.60240668]
[1728838810584,2.80363916,2456.3,2456.2,2.60243241]
[1728838810882,2.80363916,2456.3,2456.2,2.60243338]
[1728838811083,2.80363916,2456.3,2456.2,2.09320667]
[1728838811684,2.80363916,2456.3,2456.2,2.60243049]
[1728838811891,2.80363916,2456.3,2456.2,3.00962049]
[1728838812085,0.66637,2456.3,2456.2,3.00962049]
[1728838812483,2.80363916,2456.3,2456.2,3.00962049]
[1728838812886,0.66637,2456.3,2456.2,3.00962049]
[1728838813084,2.13726916,2456.4,2456.3,0.40717]
[1728838813287,2.54440916,2456.5,2456.4,0.40716]
[1728838813492,2.54440916,2456.5,2456.4,2.37756]
[1728838816698,2.13726916,2456.6,2456.4,2.37756]
[1728838816888,2.13726916,2456.6,2456.5,1.32]
[1728838817198,0.40712,2456.6,2456.5,1.17131913]
[1728838817487,0.40712,2456.6,2456.5,2.36403]
[1728838817885,0.40712,2456.6,2456.5,2.4913177]
[1728838818087,0.40712,2456.6,2456.5,2.36403]
[1728838819493,2.00762863,2456.6,2456.5,2.36403]
[1728838820393,2.00749522,2456.6,2456.5,2.36403]
[1728838820695,1.32,2456.6,2456.4,1.32]
[1728838820993,3.3275593,2456.5,2456.4,1.32]
[1728838821295,0.40718,2456.3,2456.2,1.72718]
[1728838821486,0.40718,2456.3,2456.2,1.85448155]
[1728838821792,2.00766336,2456.3,2456.2,1.32]
[1728838824499,2.00766336,2456.3,2456.2,1.72719]
[1728838824693,0.40719,2456.2,2456.1,0.6592]
[1728838824996,0.40719,2456.2,2456.1,0.12730834]
[1728838825196,2.00767336,2456.2,2456.1,0.12730834]
[1728838826900,2.00767336,2456.2,2456.1,1.44730834]
[1728838828392,2.00767336,2456.2,2456.1,1.85451834]
[1728838829496,2.00767336,2456.2,2456.1,1.44730834]
[1728838830199,2.00767336,2456.2,2456.1,1.32]
[1728838830391,2.00767336,2456.2,2456.1,1.44730882]
[1728838830789,2.00767336,2456.2,2456.1,1.85451882]
[1728838832091,2.00767336,2456.2,2456.1,1.44730882]
[1728838833199,3.32767336,2456.2,2456.1,0.12730882]
[1728838833499,3.32767336,2456.2,2455.8,1.32]
[1728838833500,0.40724,2455.9,2455.8,1.32]
[1728838833800,0.40724,2455.9,2455.8,1.95659797]
[1728838833989,0.40724,2455.9,2455.8,1.82927838]
[1728838834191,0.40724,2455.9,2455.8,1.95661021]
[1728838835192,3.32851377,2455.9,2455.8,0.12732204]
[1728838835590,5.392,2455.9,2455.7,5.185]
[1728838835903,2.65654309,2455.8,2455.7,5.185]
[1728838836090,2.65654309,2455.8,2455.7,5.31232806]
[1728838836293,3.97654309,2455.8,2455.7,5.31232806]
[1728838836493,3.97654309,2455.8,2455.7,4.65512806]
[1728838836890,3.97654309,2455.8,2455.7,3.33512806]
[1728838837505,3.97654309,2455.8,2455.5,2.76135077]
[1728838837506,7.64128309,2455.8,2455.5,0.6506]
[1728838837704,7.64128309,2455.8,2455.4,3.2078]
[1728838837705,0.40731,2455.5,2455.4,4.5278]
[1728838837900,0.40731,2455.5,2455.4,4.65514352]
[1728838838199,0.40732,2455.4,2455.3,1.2804]
[1728838838500,0.40732,2455.4,2455.3,1.9706]
[1728838839296,0.40732,2455.4,2455.3,2.37794]
[1728838839704,3.31603558,2455.5,2455.4,0.40732]
[1728838840000,0.40731,2455.5,2455.4,1.72732]
[1728838840199,0.40731,2455.5,2455.4,2.40442]
[1728838845514,0.40731,2455.5,2455.4,1.9971]
[1728838847209,1.72731,2455.5,2455.4,2.40442]
[1728838850113,2.3576,2455.7,2455.5,0.40729]
[1728838850114,0.40729,2455.6,2455.5,0.40729]
[1728838850314,0.40729,2455.6,2455.5,1.72729]
[1728838850615,0.40729,2455.6,2455.5,1.32]
[1728838851020,1.32,2455.6,2455.4,2.40441]
[1728838851209,0.40731,2455.5,2455.4,2.40441]
[1728838861714,1.9705,2455.7,2455.4,1.9971]
[1728838862015,0.4073,2455.6,2455.5,1.72729]
[1728838862319,0.4073,2455.6,2455.5,1.32]
[1728838864221,0.40729,2455.6,2455.5,1.32]
[1728838865218,0.40729,2455.6,2455.5,1.72731]
[1728838865816,0.40729,2455.6,2455.5,1.32]
[1728838868920,0.40731,2455.5,2455.4,0.6771]
[1728838871015,1.32,2455.5,2455.3,0.6506]
[1728838871328,1.72732,2455.4,2455.3,0.6506]
[1728838871516,2.38862,2455.4,2455.3,0.6506]
[1728838872726,1.06862,2455.4,2455.3,0.6506]
[1728838875623,1.74872,2455.4,2455.3,0.6506]
[1728838876335,4.66984558,2455.4,2455.3,0.6506]
[1728838877425,3.06872,2455.4,2455.3,0.6506]
[1728838878425,5.20375169,2455.4,2455.3,0.6506]
[1728838880131,5.20375169,2455.4,2455.3,2.37794]
[1728838880319,5.20375169,2455.4,2455.3,1.9706]
[1728838880725,5.20375169,2455.4,2455.3,2.37794]
[1728838881227,5.20375169,2455.4,2455.3,1.9706]
[1728838881528,5.20375169,2455.4,2455.3,2.09795811]
[1728838881529,3.06872,2455.4,2455.3,2.09795811]
[1728838882124,3.06872,2455.4,2455.3,2.50529811]
[1728838882330,5.73361674,2455.4,2455.3,2.50529811]
[1728838883026,3.06872,2455.4,2455.3,2.50529811]
[1728838883232,3.06872,2455.4,2455.3,2.09795811]
[1728838883428,5.73361674,2455.4,2455.3,2.09795811]
[1728838883637,5.73361674,2455.4,2455.3,2.60738177]
[1728838884227,5.73361674,2455.4,2455.3,1.28738177]
[1728838884833,5.73361674,2455.4,2455.3,1.16002366]
[1728838885038,5.73361674,2455.4,2455.3,1.28738063]
[1728838885333,5.73361674,2455.4,2455.3,1.28738045]
[1728838886434,5.73361674,2455.4,2455.3,0.77795679]
[1728838887134,5.73361674,2455.4,2455.3,0.6506]
[1728838887338,5.73361674,2455.4,2455.3,0.77795988]
[1728838890036,9.80641674,2455.4,2455.3,0.12735988]
[1728838890232,9.39909674,2455.4,2455.0,6.23105077]
[1728838890543,2.01062809,2455.1,2455.0,6.23105077]
[1728838890730,2.01062809,2455.1,2455.0,7.96300297]
[1728838890931,2.01062809,2455.1,2455.0,7.6431946]
[1728838891435,2.01062809,2455.1,2455.0,8.4583098]
[1728838891736,2.01062809,2455.1,2455.0,8.0509198]
[1728838892136,2.01062809,2455.1,2455.0,6.7309198]
[1728838892137,3.33062809,2455.1,2455.0,6.7309198]
[1728838892328,3.86504746,2455.1,2455.0,4.49050875]
[1728838894332,3.86504746,2455.1,2455.0,4.363147]
[1728838894533,3.86504746,2455.1,2455.0,4.4905463]
[1728838895341,3.86504746,2455.1,2455.0,3.98106926]
[1728838897336,1.72737,2455.1,2455.0,3.98106926]
[1728838898145,1.72737,2455.1,2455.0,3.8537]
[1728838898346,1.72737,2455.1,2455.0,3.98106894]
[1728838898858,1.72737,2455.1,2455.0,3.8537]
[1728838899152,1.72737,2455.1,2455.0,3.9810689]
[1728838901755,1.72737,2455.1,2455.0,3.8537]
[1728838901954,1.72737,2455.1,2455.0,4.38845967]
[1728838902150,2.54503746,2455.2,2455.1,0.40737]
[1728838902355,2.54503746,2455.2,2455.1,1.72737]
[1728838902356,2.13767746,2455.2,2455.1,1.72737]
[1728838902550,2.54502746,2455.2,2455.1,1.72737]
[1728838902753,2.13767746,2455.2,2455.1,1.72737]
[1728838903150,2.13767746,2455.3,2455.2,0.40735]
[1728838903355,2.13767746,2455.3,2455.2,2.54551171]
[1728838903553,2.13767746,2455.4,2455.3,0.40734]
[1728838903754,2.13767746,2455.4,2455.3,2.50359245]
[1728838903962,2.54499746,2455.5,2455.4,0.40732]
[1728838904161,2.54499746,2455.5,2455.4,1.32]
[1728838905058,3.45767746,2455.5,2455.4,1.32]
[1728838905256,3.86498746,2455.5,2455.4,1.32]
[1728838905961,0.40732,2455.4,2455.3,2.6503]
[1728838906158,3.86323647,2455.4,2455.3,1.3303]
[1728838907158,0.40737,2455.1,2455.0,3.2078]
[1728838907463,3.32946818,2455.1,2455.0,7.17551393]
[1728838908156,3.32946818,2455.1,2455.0,4.49221393]
[1728838908557,3.32946818,2455.1,2455.0,5.81221393]
[1728838909364,3.32946818,2455.1,2455.0,5.1754]
[1728838909557,3.32946818,2455.1,2455.0,5.30276467]
[1728838909757,3.32946818,2455.1,2455.0,5.81222335]
[1728838911256,3.32946818,2455.1,2455.0,2.60442335]
[1728838912766,3.32946818,2455.1,2455.0,2.60442568]
[1728838914468,3.32946818,2455.1,2455.0,3.01181568]
[1728838914857,2.00946818,2455.1,2455.0,3.01181568]
[1728838915370,2.00946818,2455.1,2455.0,3.21559898]
[1728838915760,1.60209818,2455.1,2455.0,7.28919898]
[1728838916057,1.60209818,2455.2,2455.1,0.40737]
[1728838916254,2.54348091,2455.3,2455.2,0.40735]
[1728838916468,2.54348091,2455.3,2455.2,3.18371513]
[1728838917063,3.86348091,2455.3,2455.2,2.77636513]
[1728838917269,1.72735,2455.3,2455.2,1.45636513]
[1728838917461,1.72735,2455.3,2455.2,1.45636249]
[1728838918363,1.87495,2455.3,2455.2,2.77636249]
[1728838918864,4.53984674,2455.3,2455.2,2.77636249]
[1728838919172,4.53984674,2455.3,2455.2,1.329]
[1728838920861,4.53984674,2455.3,2455.2,1.45636384]
[1728838921167,4.53984674,2455.3,2455.2,1.329]
[1728838921869,1.87495,2455.3,2455.2,1.45636391]
[1728838922466,3.21984674,2455.3,2455.2,3.18371391]
[1728838922667,2.69223093,2455.3,2455.2,6.39151009]
[1728838922866,0.1476,2455.3,2455.2,7.10471241]
[1728838923372,1.75040862,2455.3,2455.2,7.10471241]
[1728838923668,0.1476,2455.3,2455.2,7.10471241]
[1728838923871,1.75039344,2455.3,2455.2,7.10471241]
[1728838925266,1.79219344,2455.3,2455.2,7.10471241]
[1728838926067,1.79219344,2455.3,2455.2,17.17751241]
[1728838926370,0.1894,2455.3,2455.2,19.71504291]
[1728838926564,0.1894,2455.3,2455.2,21.54875433]
[1728838926769,0.1894,2455.3,2455.2,22.05813119]
[1728838926968,0.1894,2455.3,2455.2,16.05813119]
[1728838927164,0.1894,2455.3,2455.2,15.03942274]
[1728838927364,0.1894,2455.3,2455.2,21.03942274]
[1728838928069,0.0766,2455.4,2455.3,0.40734]
[1728838928269,0.0766,2455.4,2455.3,10.66635644]
[1728838929967,0.0766,2455.4,2455.3,9.36529891]
[1728838930569,0.0766,2455.4,2455.3,9.36522893]
[1728838930771,0.0766,2455.4,2455.3,10.66484081]
[1728838930972,1.60279344,2455.7,2455.6,0.40729]
[1728838931176,1.60279344,2455.8,2455.7,0.40727]
[1728838931472,2.01004344,2455.9,2455.8,0.40726]
[1728838931677,2.01004344,2455.9,2455.8,1.72726]
[1728838931866,1.60279344,2455.9,2455.8,1.72726]
[1728838932175,2.01003344,2455.9,2455.8,1.72726]
[1728838932469,2.01003344,2456.0,2455.9,0.40724]
[1728838932675,2.01003344,2456.0,2455.9,1.72724]
[1728838933867,1.60279344,2456.0,2455.9,1.72724]
[1728838934069,1.60279344,2456.2,2456.1,0.40721]
[1728838934265,1.60279344,2456.4,2456.1,1.32]
[1728838934464,1.60279344,2456.4,2456.3,1.32]
[1728838934671,2.00994344,2456.5,2456.4,0.40716]
[1728838934873,2.00994344,2456.5,2456.4,1.32]
[1728838935168,2.00571121,2456.5,2456.4,1.32]
[1728838936270,0.40715,2456.5,2456.4,1.32]
[1728838936473,2.91856121,2456.6,2456.4,1.32]
[1728838936474,1.59856121,2456.6,2456.4,1.32]
[1728838936772,3.2078,2456.7,2456.5,1.32]
[1728838936971,3.2078,2456.7,2456.3,3.901]
[1728838936972,3.61491,2456.7,2456.6,2.38302]
[1728838937975,3.61491,2456.7,2456.6,1.9759]
[1728838938477,0.40711,2456.7,2456.6,1.9759]
[1728838938970,0.40711,2456.7,2456.6,2.38302]
[1728838941890,0.6319,2456.8,2456.7,0.40711]
[1728838942064,0.6319,2456.8,2456.7,3.04751]
[1728838942474,5.60877,2457.0,2456.8,0.40709]
[1728838942676,5.60877,2457.0,2456.9,0.6385]
[1728838942677,6.27407,2457.0,2456.9,0.6385]
[1728838943073,3.06627,2457.0,2456.9,0.6385]
[1728838943271,2.39237,2457.0,2456.9,0.6385]
[1728838943966,1.07237,2457.0,2456.9,1.9585]
[1728838944478,1.07237,2457.0,2456.9,0.6385]
[1728838944479,2.39237,2457.0,2456.9,0.6385]
[1728838945285,1.07237,2457.0,2456.9,2.36557]
[1728838945875,0.6408,2457.2,2456.9,1.9585]
[1728838946079,0.6923,2457.3,2457.2,0.40702]
[1728838946265,1.09931,2457.3,2457.2,1.72702]
[1728838946585,1.09931,2457.3,2457.2,3.01342]
[1728838947177,0.6923,2457.3,2457.2,3.01342]
[1728838947366,1.05748,2457.5,2457.4,0.40699]
[1728838947573,1.05748,2457.5,2457.4,1.32]
[1728838947773,1.05748,2457.5,2457.4,1.72699]
[1728838947980,0.38,2457.8,2457.4,8.5974]
[1728838948184,1.06,2458.0,2457.7,1.72694]
[1728838948476,1.06,2458.0,2457.9,1.32]
[1728838948477,2.40689,2458.0,2457.9,1.32]
[1728838949877,2.40689,2458.0,2457.7,0.40694]
[1728838949878,0.68,2458.0,2457.7,0.40694]
[1728838950073,0.40691,2457.9,2457.7,0.40694]
[1728838950273,0.68,2458.0,2457.7,1.10324]
[1728838950579,0.68,2458.0,2457.8,0.40692]
[1728838950580,1.0869,2458.0,2457.8,0.40692]
[1728838951075,0.68,2458.0,2457.7,0.6963]
[1728838951279,1.0869,2458.0,2457.8,0.40692]
[1728838951475,0.40691,2457.9,2457.7,1.10323]
[1728838951682,0.68,2458.0,2457.8,0.40692]
[1728838951683,1.0869,2458.0,2457.8,0.40692]
[1728838952068,3.2078,2458.2,2457.8,2.86]
[1728838952275,3.2078,2458.2,2457.8,3.5507]
[1728838952780,3.61466,2458.2,2458.1,0.40687]
[1728838952979,1.3455,2458.3,2458.1,0.40687]
[1728838952980,0.6563,2458.3,2458.1,0.40687]
[1728838953179,0.6563,2458.3,2458.2,3.26686]
[1728838956183,0.6563,2458.3,2458.2,3.96186]
[1728838956877,0.6563,2458.3,2458.2,3.555]
[1728838957078,1.06314,2458.3,2458.2,2.86]
[1728838957280,1.06314,2458.3,2458.1,1.6469]
[1728838957281,0.6563,2458.3,2458.1,1.6469]
[1728838957877,0.40686,2458.2,2458.1,1.6469]
[1728838959986,0.40686,2458.2,2458.1,2.05377]
[1728838960385,0.40686,2458.2,2458.1,1.6469]
[1728838960888,0.40686,2458.2,2458.1,0.6309]
[1728838961594,0.40686,2458.2,2458.1,1.03777]
[1728838961787,0.6563,2458.3,2458.1,1.03777]
[1728838961987,0.40686,2458.2,2458.1,0.6309]
[1728838963288,0.40686,2458.2,2458.1,1.03777]
[1728838963986,1.06315,2458.3,2458.2,0.40686]
[1728838964184,0.40683,2458.4,2458.3,0.40684]
[1728838964893,0.40681,2458.5,2458.4,0.40682]
[1728838965893,0.40678,2458.7,2458.6,0.40678]
[1728838966297,0.40677,2458.8,2458.6,0.40678]
[1728838966597,2.32945,2459.0,2458.6,0.40679]
[1728838966598,0.40678,2458.7,2458.6,0.40679]
[1728838966989,0.40679,2458.6,2458.5,1.0822]
[1728838967797,0.40679,2458.6,2458.5,0.6754]
[1728838968988,1.76849,2458.6,2458.5,0.6754]
[1728838969184,0.40679,2458.6,2458.5,0.6754]
[1728838969991,0.40679,2458.6,2458.4,2.86]
[1728838970290,0.40679,2458.6,2458.2,1.10175]
[1728838970291,0.40684,2458.3,2458.2,1.6694]
[1728838970490,0.40684,2458.3,2458.2,2.07626]
[1728838971995,0.40684,2458.4,2458.3,0.40684]
[1728838972294,0.40684,2458.3,2458.2,2.07625]
[1728838972499,0.40684,2458.4,2458.3,0.40684]
[1728838972692,0.40684,2458.3,2458.2,1.06025]
[1728838973499,0.40684,2458.3,2458.2,3.92025]
[1728838974097,0.40684,2458.3,2458.2,3.5134]
[1728838974692,0.40684,2458.3,2458.2,2.86]
[1728838975395,1.3584,2458.3,2458.1,2.86]
[1728838975597,0.40687,2458.2,2458.1,2.86]
[1728838977102,4.068,2458.2,2457.9,3.2078]
[1728838977299,0.40689,2458.0,2457.9,3.2078]
[1728838978299,0.40692,2457.8,2457.7,0.6865]
[1728838979100,0.40692,2457.8,2457.7,1.09344]
[1728838979407,0.40692,2457.8,2457.7,0.6865]
[1728838980306,2.0071,2457.9,2457.6,2.86]
[1728838980499,1.3104,2457.9,2457.8,2.86]
[1728838980693,1.07971,2457.9,2457.8,3.26692]
[1728838981311,1.07971,2457.9,2457.8,2.86]
[1728838981493,0.6728,2457.9,2457.6,2.86]
[1728838981701,0.40694,2457.7,2457.6,3.26695]
[1728838981999,0.40694,2457.7,2457.6,4.28095]
[1728838982200,0.40694,2457.7,2457.6,2.86]
[1728838982897,0.6311,2457.8,2457.5,3.2078]
[1728838983098,0.6311,2457.8,2457.4,0.6816]
[1728838983099,0.40697,2457.5,2457.4,0.6816]
[1728838983498,0.30697,2457.5,2457.4,0.6816]
[1728838983700,0.20697,2457.5,2457.4,0.6816]
[1728838984100,0.40697,2457.5,2457.4,0.6816]
[1728838984307,0.40697,2457.5,2457.4,3.5416]
[1728838985601,0.40697,2457.5,2457.4,2.86]
[1728838986206,0.40697,2457.5,2457.3,1.093]
[1728838986207,1.68528,2457.7,2457.3,0.686]
[1728838986504,1.68528,2457.7,2457.2,4.28102]
[1728838986505,0.40701,2457.3,2457.2,4.28102]
[1728838987308,0.40701,2457.3,2457.2,2.86]
[1728838987498,0.6984,2457.4,2457.2,2.86]
[1728838987499,1.1054,2457.4,2457.2,3.26701]
[1728838987698,1.1054,2457.4,2457.3,3.26701]
[1728838988608,1.1054,2457.4,2457.3,2.86]
[1728838989006,1.1054,2457.4,2457.1,0.40703]
[1728838989007,0.40702,2457.2,2457.1,0.40703]
[1728838989305,0.40702,2457.2,2456.5,4.14479741]
[1728838989306,0.40707,2456.9,2456.8,0.6846]
[1728838989696,0.40707,2457.0,2456.9,0.40707]
[1728838989901,0.40707,2456.9,2456.8,3.95168]
[1728838990102,1.3836,2457.3,2456.8,3.5446]
[1728838990304,1.01757,2457.2,2456.9,0.40707]
[1728838990503,0.40705,2457.1,2456.9,0.40707]
[1728838991398,0.40707,2456.9,2456.8,3.5446]
[1728838997911,0.40707,2456.9,2456.8,0.6846]
[1728839002317,1.03147,2456.9,2456.8,0.6846]
[1728839004316,0.6641,2457.0,2456.8,0.6846]
[1728839004521,3.2078,2457.2,2456.8,3.5446]
[1728839004815,0.40705,2457.1,2457.0,0.40705]
[1728839005515,0.40706,2457.0,2456.9,0.40706]
[1728839011922,0.40706,2457.0,2456.9,1.72706]
[1728839012118,3.2078,2457.2,2456.9,1.32]
[1728839012319,3.61483,2457.2,2457.1,1.72704]
[1728839012726,0.40703,2457.2,2457.1,2.38344]
[1728839013022,3.2078,2457.7,2457.1,6.046]
[1728839013224,3.61476,2457.7,2457.6,1.32]
[1728839013729,3.2078,2457.7,2457.6,1.72696]
[1728839014628,0.40694,2457.7,2457.6,1.72696]
[1728839015331,0.6209,2457.8,2457.6,1.32]
[1728839015518,0.6209,2457.8,2457.4,1.32]